bitfinex-derivatives/quotes_SOLF0:USTF0_20250211
["timestamp","ask_amount","ask_price","bid_price","bid_amount"]
[1739241662895,0.03557806,200.53,200.48,1.56867726]
[1739241663700,0.03557806,200.53,200.49,4.9868]
[1739241666510,0.03557806,200.53,200.48,1.56867726]
[1739241666711,0.03557806,200.53,200.5,4.9867]
[1739241667015,0.03557806,200.53,200.5,9.37961272]
[1739241667312,4.9849,200.58,200.53,4.9859]
[1739241667512,10.96801272,200.63,200.5,9.37961272]
[1739241667714,10.96801272,200.63,200.52,4.9862]
[1739241667910,10.96801272,200.63,200.5,9.37961272]
[1739241668109,4.9845,200.6,200.5,9.37961272]
[1739241668411,0.03724429,200.59,200.54,5.01736399]
[1739241668608,5.02194429,200.59,200.54,5.01736399]
[1739241668912,0.03724429,200.59,200.54,0.03166399]
[1739241669309,4.9849,200.58,200.54,0.03166399]
[1739241669513,0.03724429,200.59,200.54,0.03166399]
[1739241670015,4.9852,200.57,200.54,0.03166399]
[1739241670715,0.03724429,200.59,200.57,4.9849]
[1739241671511,0.03724429,200.59,200.54,0.03166399]
[1739241672414,0.03724429,200.59,200.57,4.985]
[1739241673412,0.03724429,200.59,200.54,0.03166399]
[1739241673614,9.37961272,200.69,200.56,9.37961272]
[1739241674010,4.984,200.62,200.57,4.9848]
[1739241674312,4.984,200.62,200.56,9.37961272]
[1739241674816,0.03685821,200.61,200.57,0.03493623]
[1739241675009,5.02085821,200.61,200.57,0.03493623]
[1739241675606,5.02085821,200.61,200.57,5.01983623]
[1739241675808,0.03685821,200.61,200.57,5.01983623]
[1739241676615,0.03685821,200.61,200.59,4.9844]
[1739241676916,0.03685821,200.61,200.57,0.03493623]
[1739241677510,0.03685821,200.61,200.6,4.9842]
[1739241678116,0.03685821,200.61,200.58,4.9846]
[1739241678313,0.03685821,200.61,200.57,0.03493623]
[1739241678715,0.03685821,200.61,200.6,4.9842]
[1739241678913,68.82373733,200.71,200.57,0.03493623]
[1739241679216,68.82373733,200.71,200.59,9.37961272]
[1739241679416,68.82373733,200.71,200.6,1.4654]
[1739241679916,68.82373733,200.71,200.63,0.03295829]
[1739241680319,4.9827,200.67,200.63,0.03295829]
[1739241680515,68.82373733,200.71,200.63,0.03295829]
[1739241680913,4.9827,200.67,200.63,0.03295829]
[1739241681114,68.82373733,200.71,200.63,0.03295829]
[1739241681918,4.9828,200.66,200.63,0.03295829]
[1739241682320,4.9825,200.67,200.63,0.03295829]
[1739241682814,4.9825,200.67,200.63,5.01635829]
[1739241683120,9.37961272,200.72,200.63,0.03295829]
[1739241683422,9.37961272,200.72,200.63,5.01645829]
[1739241683720,4.9826,200.67,200.63,5.01645829]
[1739241684520,4.9826,200.67,200.63,0.03295829]
[1739241684919,4.9828,200.66,200.63,0.03295829]
[1739241685512,4.9825,200.68,200.63,5.01645829]
[1739241685719,1.5565,200.78,200.63,0.03295829]
[1739241685720,9.37961272,200.75,200.63,0.03295829]
[1739241686220,4.9818,200.7,200.67,0.03643325]
[1739241686422,9.37961272,200.78,200.67,0.03643325]
[1739241686621,4.9813,200.72,200.68,4.9821]
[1739241687416,4.981,200.73,200.69,4.982]
[1739241687822,4.981,200.73,200.65,9.37961272]
[1739241688022,4.981,200.73,200.69,0.03396068]
[1739241688230,4.9808,200.74,200.69,0.03396068]
[1739241688529,10.86531272,200.81,200.69,5.01596068]
[1739241689225,10.86531272,200.81,200.69,0.03396068]
[1739241689723,4.9811,200.73,200.69,0.03396068]
[1739241690332,10.86531272,200.81,200.69,0.03396068]
[1739241690533,4.9813,200.72,200.69,0.03396068]
[1739241691233,4.981,200.74,200.69,5.01596068]
[1739241691436,10.86531272,200.81,200.69,0.03396068]
[1739241691833,4.9805,200.76,200.71,4.9815]
[1739241692129,1.4857,200.81,200.68,9.37961272]
[1739241692338,4.9807,200.75,200.71,0.03371206]
[1739241692835,4.9805,200.75,200.71,0.03371206]
[1739241693033,10.86531272,200.81,200.71,0.03371206]
[1739241693535,4.9811,200.73,200.71,0.03371206]
[1739241693735,10.86531272,200.81,200.71,0.03371206]
[1739241695025,4.9811,200.73,200.71,0.03371206]
[1739241697336,4.9808,200.74,200.71,0.03371206]
[1739241697634,9.37961272,200.81,200.71,0.03371206]
[1739241698237,4.9805,200.76,200.71,5.01511206]
[1739241698434,9.37961272,200.81,200.71,0.03371206]
[1739241698836,4.9806,200.75,200.71,0.03371206]
[1739241700937,9.37961272,200.81,200.71,0.03371206]
[1739241701136,4.9808,200.74,200.71,0.03371206]
[1739241701834,9.37961272,200.81,200.71,0.03371206]
[1739241703442,4.9811,200.73,200.71,0.03371206]
[1739241703842,9.37961272,200.81,200.71,0.03371206]
[1739241704141,4.9808,200.74,200.71,0.03371206]
[1739241704640,4.9811,200.73,200.71,0.03371206]
[1739241705733,9.37961272,200.81,200.71,0.03371206]
[1739241706036,4.9813,200.72,200.71,0.03371206]
[1739241714950,4.9811,200.73,200.71,0.03371206]
[1739241715647,4.9813,200.72,200.71,0.03371206]
[1739241715846,6.00365151,200.77,200.71,0.03371206]
[1739241716247,4.9805,200.76,200.71,0.03371206]
[1739241716444,6.00365151,200.77,200.71,0.03371206]
[1739241716944,4.981,200.73,200.71,0.03371206]
[1739241717550,6.00365151,200.77,200.71,0.03371206]
[1739241717747,4.9806,200.75,200.71,0.03371206]
[1739241718351,4.9809,200.74,200.71,0.03371206]
[1739241719152,4.9805,200.75,200.71,5.01521206]
[1739241719346,6.00365151,200.77,200.71,0.03371206]
[1739241720149,6.00365151,200.79,200.71,0.03371206]
[1739241720448,4.9807,200.75,200.71,0.03371206]
[1739241720647,6.00365151,200.79,200.71,0.03371206]
[1739241721755,4.9809,200.74,200.71,0.03371206]
[1739241722758,4.9813,200.72,200.71,0.03371206]
[1739241728261,4.9826,200.67,200.62,6.00365151]
[1739241728558,6.00365151,200.7,200.62,6.00365151]
[1739241729159,6.00365151,200.7,200.61,1.5802]
[1739241729160,4.9835,200.63,200.6,7.46905151]
[1739241729351,4.9835,200.63,200.58,10.98835151]
[1739241729758,5.01854907,200.63,200.58,11.0204069]
[1739241730060,4.9838,200.62,200.58,11.0204069]
[1739241730457,0.03504907,200.63,200.58,11.0204069]
[1739241730960,0.03504907,200.63,200.58,6.0357069]
[1739241731557,4.984,200.61,200.58,6.0357069]
[1739241732155,0.03504907,200.63,200.58,6.0357069]
[1739241732361,5.01864907,200.63,200.58,6.0357069]
[1739241732863,5.01864907,200.63,200.58,11.0204069]
[1739241733266,0.03504907,200.63,200.6,6.00365151]
[1739241733465,0.03504907,200.63,200.62,6.00365151]
[1739241738167,0.03504907,200.63,200.62,10.98735151]
[1739241738666,4.982,200.69,200.65,4.983]
[1739241738868,4.982,200.69,200.66,6.00365151]
[1739241739066,4.9825,200.67,200.66,6.00365151]
[1739241739273,0.1797,200.75,200.62,6.00365151]
[1739241739274,6.00365151,200.7,200.62,6.00365151]
[1739241739464,6.00365151,200.7,200.56,1.5055]
[1739241739465,6.00365151,200.68,200.6,6.00365151]
[1739241739766,6.00365151,200.68,200.64,0.0320775]
[1739241739971,6.00365151,200.7,200.64,0.0320775]
[1739241740469,4.983,200.66,200.64,0.0320775]
[1739241741168,6.00365151,200.72,200.64,6.03572901]
[1739241741768,6.00365151,200.72,200.64,11.01892901]
[1739241743171,6.00365151,200.74,200.66,6.00365151]
[1739241743670,4.982,200.69,200.68,0.03727738]
[1739241749076,6.00365151,200.74,200.68,0.03727738]
[1739241749874,56.18863173,200.79,200.68,0.03727738]
[1739241749875,6.00365151,200.76,200.68,0.03727738]
[1739241750278,4.9818,200.7,200.68,0.03727738]
[1739241752082,4.9818,200.7,200.68,6.04092889]
[1739241752282,4.9814,200.72,200.68,6.04092889]
[1739241752678,6.00365151,200.76,200.68,6.04092889]
[1739241753183,4.9816,200.71,200.68,6.04092889]
[1739241753375,6.00365151,200.76,200.68,6.04092889]
[1739241754481,4.9817,200.71,200.68,6.04092889]
[1739241755484,4.9804,200.76,200.7,6.00365151]
[1739241755686,6.00365151,200.78,200.7,6.00365151]
[1739241755881,2.9605,200.79,200.68,0.03727738]
[1739241755882,6.00365151,200.76,200.68,6.04092889]
[1739241756082,4.9817,200.71,200.68,6.04092889]
[1739241756582,6.00365151,200.76,200.68,6.04092889]
[1739241756786,4.9818,200.7,200.68,6.04092889]
[1739241758289,4.9815,200.71,200.68,6.04092889]
[1739241758988,4.9813,200.72,200.68,6.04092889]
[1739241759585,4.9815,200.71,200.68,6.04092889]
[1739241761091,53.22813173,200.81,200.7,6.00365151]
[1739241761292,59.23178324,200.82,200.73,6.00365151]
[1739241761494,59.23178324,200.82,200.73,6.04039892]
[1739241761888,4.9805,200.76,200.73,6.04039892]
[1739241762286,59.23178324,200.82,200.73,0.03674741]
[1739241762587,14.91,200.73,200.46,6.00365151]
[1739241762791,5.00360117,200.58,200.5,28.64926481]
[1739241763492,6.00365151,200.6,200.5,28.64926481]
[1739241763691,0.03787341,200.56,200.53,6.00365151]
[1739241763991,6.00365151,200.62,200.53,6.00365151]
[1739241764288,0.03377952,200.57,200.52,0.03149954]
[1739241764486,6.00365151,200.56,200.5,1.5258]
[1739241764790,6.00365151,200.56,200.52,0.03605175]
[1739241765584,0.03336009,200.57,200.52,0.03605175]
[1739241773700,0.03336009,200.57,200.53,4.9859]
[1739241774196,0.03336009,200.57,200.53,3.0555]
[1739241775300,0.03336009,200.57,200.53,8.0415]
[1739241775897,0.03336009,200.57,200.53,3.0555]
[1739241776197,9.40048874,200.68,200.54,9.40048874]
[1739241776795,9.40048874,200.68,200.54,14.38618874]
[1739241777201,9.40048874,200.68,200.54,9.40048874]
[1739241777399,9.40048874,200.68,200.59,0.03261456]
[1739241782802,24.31048874,200.68,200.59,0.03261456]
[1739241786512,9.40048874,200.68,200.59,0.03261456]
[1739241787413,14.91,200.7,200.59,0.03261456]
[1739241787605,6.00943648,200.67,200.59,6.04205104]
[1739241791315,4.9842,200.61,200.59,6.04205104]
[1739241793018,4.9831,200.65,200.59,6.04205104]
[1739241793219,6.00943648,200.67,200.59,6.04205104]
[1739241793719,4.9842,200.61,200.59,6.04205104]
[1739241795716,53.22813173,200.76,200.59,9.68205104]
[1739241795921,53.22813173,200.76,200.74,6.00943648]
[1739241797312,53.22813173,200.79,200.74,6.00943648]
[1739241797714,4.9808,200.74,200.73,0.0323922]
[1739241800123,1.464,200.82,200.73,0.0323922]
[1739241800921,4.9808,200.74,200.73,0.0323922]
[1739241812134,4.9805,200.75,200.73,0.0323922]
[1739241812330,9.37633499,200.82,200.73,0.0323922]
[1739241813532,4.9806,200.75,200.73,0.0323922]
[1739241814040,9.37633499,200.82,200.73,0.0323922]
[1739241814338,9.37633499,200.85,200.73,0.0323922]
[1739241814536,4.98,200.78,200.71,9.37633499]
[1739241814743,10.87943499,200.88,200.77,0.03435334]
[1739241814934,10.87943499,200.88,200.75,2.9886]
[1739241815135,4.979,200.82,200.76,4.9801]
[1739241815434,10.87943499,200.88,200.8,0.03782261]
[1739241815630,4.979,200.81,200.8,0.03782261]
[1739241819636,10.98006599,200.81,200.8,2.261e-05]
[1739241821737,0.03682442,200.83,200.8,6.0010886]
[1739241821935,53.22813173,200.91,200.82,6.00106599]
[1739241822136,4.9769,200.9,200.86,6.00106599]
[1739241822332,53.22813173,200.91,200.86,6.00106599]
[1739241823141,53.22813173,200.91,200.86,6.03655252]
[1739241823342,4.9775,200.87,200.86,0.03548653]
[1739241828842,4.9775,200.87,200.86,8.653e-05]
[1739241841552,4.9775,200.87,200.73,3.0872]
[1739241841553,24.31768817,200.87,200.73,3.0872]
[1739241841853,9.36768817,200.78,200.67,1.616]
[1739241842254,4.9812,200.73,200.67,6.5984]
[1739241842454,9.36768817,200.78,200.67,1.616]
[1739241842654,9.36768817,200.75,200.67,1.616]
[1739241842855,9.40226711,200.75,200.7,0.03260657]
[1739241843658,0.03457894,200.75,200.7,0.03260657]
[1739241845059,0.03457894,200.75,200.7,5.01430657]
[1739241845258,0.03457894,200.75,200.7,0.03260657]
[1739241845757,4.9815,200.71,200.7,0.03260657]
[1739241853562,4.9813,200.72,200.7,0.03260657]
[1739241853768,0.03457894,200.75,200.7,0.03260657]
[1739241854364,0.03457894,200.75,200.72,9.36768817]
[1739241854969,4.9803,200.76,200.72,9.36768817]
[1739241855278,78.56248306,200.85,200.72,9.36768817]
[1739241855574,9.36768817,200.87,200.75,9.36768817]
[1739241856177,9.36768817,200.87,200.79,0.03483697]
[1739241856969,4.9793,200.8,200.79,0.03483697]
[1739241859979,4.9793,200.8,200.79,3.697e-05]
[1739241867674,0.03694062,200.82,200.79,3.697e-05]
[1739241869273,4.979,200.81,200.79,3.697e-05]
[1739241869482,0.03694062,200.82,200.79,3.697e-05]
[1739241869873,65.42235238,200.91,200.79,3.697e-05]
[1739241870073,4.9777,200.87,200.81,4.979]
[1739241870881,4.9777,200.87,200.82,9.36768817]
[1739241871081,53.22813173,200.94,200.86,9.36768817]
[1739241871278,53.22813173,200.94,200.9,9.36768817]
[1739241871479,58.20403173,200.94,200.88,0.03243208]
[1739241871686,53.22813173,200.94,200.88,0.03243208]
[1739241873382,4.9761,200.93,200.88,0.03243208]
[1739241873579,53.22813173,200.94,200.88,5.00973208]
[1739241874390,14.95,201.01,200.88,5.00973208]
[1739241874587,14.95,201.01,200.88,4.9773]
[1739241874883,24.31768817,201.03,200.92,0.03675869]
[1739241875977,56.30413173,201.05,200.93,9.36768817]
[1739241875978,1.6165,201.02,200.93,9.36768817]
[1739241876781,4.9748,200.98,200.93,9.36768817]
[1739241876979,3.076,201.05,200.93,9.36768817]
[1739241877184,4.9744,201.0,200.94,4.9756]
[1739241877486,3.076,201.05,200.97,0.03199088]
[1739241877782,4.9748,200.98,200.97,9.088e-05]
[1739241880091,14.95,200.99,200.84,9.36768817]
[1739241880290,14.95,200.99,200.83,3.1877]
[1739241880291,4.9771,200.89,200.83,3.1877]
[1739241880490,9.36768817,200.95,200.83,3.1877]
[1739241881386,0.03482283,200.91,200.87,0.03289431]
[1739241881790,4.9773,200.88,200.87,0.03289431]
[1739241883592,0.03482283,200.91,200.87,0.03289431]
[1739241884388,4.9773,200.88,200.87,0.03289431]
[1739241886185,0.03482283,200.91,200.87,0.03289431]
[1739241887492,4.9773,200.88,200.87,0.03289431]
[1739241890400,14.95,200.87,200.72,9.36768817]
[1739241890598,9.36768817,200.84,200.72,9.36768817]
[1739241890892,9.36768817,200.81,200.69,9.36768817]
[1739241891297,9.36768817,200.81,200.7,4.9817]
[1739241891500,5.01355036,200.77,200.73,0.03593637]
[1739241891799,0.03335036,200.77,200.73,0.03593637]
[1739241893601,4.9806,200.75,200.73,0.03593637]
[1739241894402,4.9803,200.76,200.73,0.03593637]
[1739241895603,0.03335036,200.77,200.73,0.03593637]
[1739241895804,0.03335036,200.77,200.73,5.01683637]
[1739241898304,0.03335036,200.77,200.73,0.03593637]
[1739241898703,4.9805,200.75,200.73,0.03593637]
[1739241899910,0.03335036,200.77,200.73,0.03593637]
[1739241900405,4.9805,200.75,200.73,0.03593637]
[1739241901195,0.03335036,200.77,200.73,0.03593637]
[1739241901505,4.9803,200.76,200.73,0.03593637]
[1739241902203,0.03335036,200.77,200.73,0.03593637]
[1739241902703,4.9805,200.75,200.73,0.03593637]
[1739241903002,0.03335036,200.77,200.73,0.03593637]
[1739241903203,4.9808,200.74,200.73,3.637e-05]
[1739241905599,19.9308,200.74,200.73,3.637e-05]
[1739241906203,4.9835,200.63,200.58,4.9845]
[1739241907109,9.36768817,200.7,200.57,9.36768817]
[1739241907306,9.36768817,200.67,200.61,0.03574718]
[1739241907505,4.7554,200.66,200.61,0.03574718]
[1739241907715,4.791953,200.66,200.61,0.03574718]
[1739241907909,4.9837,200.62,200.61,0.03574718]
[1739241908108,9.36768817,200.64,200.51,9.36768817]
[1739241908310,4.985,200.57,200.51,14.35418817]
[1739241908508,24.31768817,200.64,200.51,9.36768817]
[1739241909314,24.31768817,200.64,200.55,0.03494313]
[1739241909315,0.03675529,200.6,200.55,0.03494313]
[1739241910413,4.9852,200.56,200.55,0.03494313]
[1739241910904,0.03675529,200.6,200.55,0.03494313]
[1739241910905,4.9849,200.58,200.55,0.03494313]
[1739241911310,0.03675529,200.6,200.55,0.03494313]
[1739241911519,4.9846,200.59,200.55,0.03494313]
[1739241911715,0.03675529,200.6,200.55,0.03494313]
[1739241912511,0.03675529,200.6,200.48,9.36768817]
[1739241912715,9.36768817,200.57,200.36,4.6932]
[1739241912918,1.5279,200.56,200.36,4.6932]
[1739241913117,17.9593,200.56,200.36,4.6932]
[1739241913415,17.9593,200.56,200.42,14.35628817]
[1739241913621,9.36768817,200.54,200.42,9.36768817]
[1739241913917,0.03540869,200.51,200.47,0.03691669]
[1739241915921,4.9871,200.49,200.47,0.03691669]
[1739241917819,0.03540869,200.51,200.47,0.03691669]
[1739241918020,4.9872,200.48,200.47,0.03691669]
[1739241919024,4.9872,200.48,200.47,1.669e-05]
[1739241920120,0.03540869,200.51,200.47,1.669e-05]
[1739241920722,4.9872,200.48,200.47,1.669e-05]
[1739241923124,9.40309686,200.51,200.47,1.669e-05]
[1739241923125,4.9869,200.5,200.47,1.669e-05]
[1739241923524,0.03540869,200.51,200.47,1.669e-05]
[1739241924127,0.03540869,200.51,200.5,4.9867]
[1739241924528,2.9645,200.62,200.48,13.85878817]
[1739241924826,9.36768817,200.66,200.55,9.36768817]
[1739241925325,2.9645,200.68,200.55,9.36768817]
[1739241925724,0.03458676,200.64,200.59,0.03784839]
[1739241926228,4.9835,200.63,200.59,0.03784839]
[1739241926923,5.01788676,200.64,200.59,0.03784839]
[1739241927428,0.03458676,200.64,200.59,0.03784839]
[1739241927725,0.03458676,200.64,200.61,9.36768817]
[1739241928026,0.03458676,200.64,200.59,0.03784839]
[1739241928629,9.40227493,200.64,200.59,0.03784839]
[1739241929727,4.9842,200.61,200.59,0.03784839]
[1739241930425,0.03458676,200.64,200.59,0.03784839]
[1739241930629,4.9842,200.6,200.59,0.03784839]
[1739241931429,4.9842,200.6,200.59,4.839e-05]
[1739241933031,14.98458676,200.64,200.59,4.839e-05]
[1739241933330,4.9839,200.62,200.59,4.839e-05]
[1739241933533,0.03458676,200.64,200.59,4.839e-05]
[1739241934630,0.03458676,200.64,200.63,4.9835]
[1739241934834,19.58320573,200.79,200.61,15.02830573]
[1739241935033,4.9814,200.72,200.61,15.02830573]
[1739241935337,53.22813173,200.77,200.61,15.02830573]
[1739241935634,14.95,200.76,200.58,4.5695]
[1739241935832,14.95,200.76,200.63,5.01596569]
[1739241936037,0.03371418,200.68,200.63,5.01596569]
[1739241936236,0.03371418,200.68,200.63,0.03246569]
[1739241937834,4.9833,200.64,200.63,0.03246569]
[1739241944949,4.9852,200.57,200.34,4.985]
[1739241945153,0.03371418,200.68,200.34,4.985]
[1739241945154,29.97830573,200.63,200.46,4.6474]
[1739241945340,29.97830573,200.63,200.49,4.9868]
[1739241946043,29.97830573,200.63,200.46,4.6474]
[1739241946244,0.03443837,200.58,200.54,0.03224253]
[1739241947145,4.9855,200.55,200.54,4.253e-05]
[1739241963660,0.03443837,200.58,200.54,4.253e-05]
[1739241964468,78.56248306,200.66,200.55,9.40044637]
[1739241964665,78.56248306,200.66,200.59,4.9842]
[1739241964666,53.22813173,200.66,200.59,4.9842]
[1739241964866,4.983,200.65,200.58,9.40044637]
[1739241965061,53.22813173,200.66,200.58,9.40044637]
[1739241965666,0.03800801,200.64,200.6,0.03603478]
[1739241966673,0.03800801,200.64,200.61,4.9838]
[1739241967174,0.03800801,200.64,200.6,0.03603478]
[1739241967374,0.03800801,200.64,200.62,4.9837]
[1739241968473,4.9823,200.68,200.62,4.9837]
[1739241968673,4.588,200.74,200.58,15.01969057]
[1739241968869,4.588,200.74,200.61,4.984]
[1739241969072,4.9824,200.68,200.58,15.01969057]
[1739241969273,4.9824,200.68,200.61,4.9838]
[1739241969465,4.9824,200.68,200.58,15.01969057]
[1739241969672,0.03724874,200.67,200.62,0.0360648]
[1739241969975,66.35592932,200.73,200.62,15.05575537]
[1739241970170,4.9813,200.72,200.62,15.05575537]
[1739241970567,4.9813,200.72,200.65,4.983]
[1739241970776,4.9815,200.71,200.66,1.5013]
[1739241970977,66.35592932,200.73,200.66,1.5013]
[1739241971168,0.03629401,200.71,200.66,1.53912391]
[1739241974380,0.03629401,200.71,200.68,4.9821]
[1739241976180,0.03629401,200.71,200.69,4.9819]
[1739241976376,0.03629401,200.71,200.67,1.5653]
[1739241976881,0.03629401,200.71,200.68,4.9822]
[1739241977180,0.03629401,200.71,200.68,1.551]
[1739241977982,0.03629401,200.71,200.7,4.9818]
[1739241980278,206.01969057,200.85,200.75,4.9805]
[1739241980480,206.01969057,200.85,200.68,1.551]
[1739241980481,3.1495,200.86,200.7,15.01969057]
[1739241980672,3.1495,200.86,200.68,1.551]
[1739241980877,4.98,200.78,200.73,4.981]
[1739241981182,15.01969057,200.85,200.68,1.551]
[1739241981382,4.9793,200.8,200.7,4.9817]
[1739241981688,0.0372567,200.79,200.74,0.03287422]
[1739241982077,4.9805,200.75,200.74,0.03287422]
[1739241983675,0.0372567,200.79,200.74,0.03287422]
[1739241984481,0.0372567,200.79,200.74,15.05256479]
[1739241984683,0.0372567,200.79,200.75,1.521]
[1739241984883,4.9777,200.87,200.79,4.9795]
[1739241985078,3.1349,200.91,200.79,4.9795]
[1739241985582,4.9783,200.84,200.8,1.5939]
[1739241985982,3.1349,200.91,200.8,6.5732]
[1739241986181,0.03492377,200.84,200.8,6.60539849]
[1739241986381,0.03492377,200.84,200.8,1.62609849]
[1739241987480,4.9786,200.83,200.8,1.62609849]
[1739241987685,0.03492377,200.84,200.8,1.62609849]
[1739241988487,5.01322377,200.84,200.8,1.62609849]
[1739241989186,4.9785,200.83,200.8,1.62609849]
[1739241989787,0.03492377,200.84,200.8,1.62609849]
[1739241990484,4.9788,200.83,200.8,1.62609849]
[1739241991187,0.03492377,200.84,200.82,4.9787]
[1739241991386,0.03492377,200.84,200.8,1.62609849]
[1739241992186,0.03492377,200.84,200.8,6.60539849]
[1739241992385,0.03492377,200.84,200.8,0.03219849]
[1739241992788,4.9788,200.82,200.8,0.03219849]
[1739241992984,0.03492377,200.84,200.8,0.03219849]
[1739241994287,4.979,200.81,200.8,0.03219849]
[1739241996190,0.03492377,200.84,200.8,0.03219849]
[1739241996691,191.0,201.02,200.82,15.01969057]
[1739241996883,56.25173173,200.98,200.82,15.01969057]
[1739241997086,56.25173173,200.98,200.87,4.9774]
[1739241997892,0.03146161,200.95,200.9,0.03507388]
[1739241998091,4.9761,200.93,200.9,0.03507388]
[1739241999186,0.03146161,200.95,200.9,0.03507388]
[1739241999392,4.9764,200.92,200.9,0.03507388]
[1739241999892,0.03146161,200.95,200.9,0.03507388]
[1739242000285,4.9763,200.92,200.9,0.03507388]
[1739242000593,0.03146161,200.95,200.9,0.03507388]
[1739242000997,4.9759,200.94,200.9,0.03507388]
[1739242001198,0.03146161,200.95,200.9,0.03507388]
[1739242002189,4.9766,200.91,200.9,0.03507388]
[1739242009805,4.9764,200.92,200.9,0.03507388]
[1739242010307,4.9759,200.94,200.9,0.03507388]
[1739242010507,0.03146161,200.95,200.9,0.03507388]
[1739242014202,4.9761,200.93,200.9,0.03507388]
[1739242014508,0.03146161,200.95,200.9,0.03507388]
[1739242016910,4.9766,200.91,200.9,0.03507388]
[1739242017412,4.9766,200.91,200.9,7.388e-05]
[1739242018312,6.4945,200.91,200.9,7.388e-05]
[1739242023413,4.9793,200.81,200.74,9.36288729]
[1739242023811,1.5179,200.91,200.77,9.36288729]
[1739242024012,4.9782,200.85,200.77,9.36288729]
[1739242024214,4.9782,200.85,200.8,4.9793]
[1739242024413,1.5179,200.91,200.77,9.36288729]
[1739242024718,0.0372725,200.85,200.8,0.03392482]
[1739242024918,0.0372725,200.85,200.82,4.9788]
[1739242025717,0.0372725,200.85,200.8,14.37591211]
[1739242026319,5.0153725,200.85,200.8,14.37591211]
[1739242026819,0.0372725,200.85,200.8,9.39681211]
[1739242027518,0.0372725,200.85,200.83,4.9785]
[1739242027816,0.0372725,200.85,200.8,9.39681211]
[1739242028215,0.0372725,200.85,200.84,4.9783]
[1739242028416,3.0315,200.94,200.83,9.36288729]
[1739242028616,1.4871,200.97,200.88,9.36288729]
[1739242028818,4.9759,200.94,200.88,14.34008729]
[1739242029213,4.9759,200.94,200.88,9.36288729]
[1739242029415,4.9753,200.96,200.9,4.9766]
[1739242029623,0.03423306,200.93,200.9,4.9766]
[1739242029920,0.03423306,200.93,200.91,4.9763]
[1739242030114,0.03423306,200.93,200.91,9.36288729]
[1739242031025,0.03423306,200.93,200.89,0.03306561]
[1739242032722,5.01043306,200.93,200.89,0.03306561]
[1739242034323,0.03423306,200.93,200.89,5.01006561]
[1739242035624,0.03423306,200.93,200.91,4.9765]
[1739242035920,53.22813173,201.03,200.91,9.36288729]
[1739242036126,53.22813173,201.03,200.94,9.36288729]
[1739242036319,4.9738,201.02,200.97,4.975]
[1739242036516,53.22813173,201.03,200.97,4.975]
[1739242036517,53.22813173,201.03,200.97,9.36288729]
[1739242036824,53.22813173,201.03,201.0,9.36288729]
[1739242037424,78.56248306,201.05,201.0,9.36288729]
[1739242037725,78.56248306,201.05,201.03,9.36288729]
[1739242038125,90.628651,201.08,201.03,14.33618729]
[1739242038324,90.628651,201.08,201.03,9.36288729]
[1739242038726,90.628651,201.08,201.03,9.39442839]
[1739242038923,95.601151,201.08,201.03,9.39442839]
[1739242039429,90.628651,201.08,201.03,9.39442839]
[1739242041028,95.601151,201.08,201.03,9.39442839]
[1739242041521,4.9719,201.1,201.03,9.39442839]
[1739242041727,10.98358729,201.16,201.03,9.39442839]
[1739242042124,10.98358729,201.16,201.03,0.0315411]
[1739242042624,4.9732,201.05,201.03,0.0315411]
[1739242042830,1.4791,201.13,201.03,9.39442839]
[1739242043528,4.9723,201.09,201.03,14.36802839]
[1739242044228,1.4791,201.13,201.03,9.39442839]
[1739242044626,1.4791,201.13,201.03,0.0315411]
[1739242044932,4.9733,201.04,201.03,0.0315411]
[1739242045224,1.4791,201.13,201.03,0.0315411]
[1739242045428,4.9728,201.07,201.03,0.0315411]
[1739242045629,1.4791,201.13,201.03,0.0315411]
[1739242046534,4.9728,201.07,201.03,0.0315411]
[1739242046831,1.4791,201.13,201.03,0.0315411]
[1739242048328,9.36288729,201.11,201.03,0.0315411]
[1739242048632,4.9733,201.04,201.03,4.11e-05]
[1739242049532,16.5188,201.04,200.87,9.36288729]
[1739242049737,9.36288729,200.98,200.85,4.978]
[1739242049938,4.9766,200.91,200.85,4.978]
[1739242050231,9.36288729,200.98,200.84,9.36288729]
[1739242050436,4.9755,200.96,200.87,9.36288729]
[1739242050732,0.03288652,200.93,200.9,9.36288729]
[1739242051129,0.03288652,200.93,200.92,4.9763]
[1739242051330,1.5688,201.04,200.92,4.9763]
[1739242051530,1.5688,201.04,200.94,9.36288729]
[1739242052124,4.9744,201.0,200.94,9.36288729]
[1739242052431,4.9744,201.0,200.95,0.03427887]
[1739242052934,4.9746,200.99,200.95,0.03427887]
[1739242053729,1.5688,201.04,200.95,0.03427887]
[1739242054335,4.9744,201.0,200.95,0.03427887]